bitfinex/quotes_SOLUSD_20240811
["timestamp","ask_amount","ask_price","bid_price","bid_amount"]
[1723383365260,0.25098,150.85,150.78,43.0878]
[1723383365479,0.25098,150.84,150.78,43.0878]
[1723383365779,45.25098,150.84,150.78,43.0878]
[1723383369160,8.03985404,150.89,150.79,21.32633933]
[1723383369390,4.6392,150.89,150.79,20.0]
[1723383370258,8.03915404,150.91,150.79,20.0]
[1723383370462,4.6385,150.91,150.8,45.93033023]
[1723383370697,559.05391192,150.92,150.82,44.6045]
[1723383370698,563.69211192,150.92,150.82,44.6045]
[1723383370863,399.02822192,150.92,150.83,21.32573104]
[1723383371062,394.39002192,150.92,150.83,20.0]
[1723383371262,380.6,150.92,150.83,20.0]
[1723383373475,1.6569815,150.91,150.83,20.0]
[1723383374077,380.6,150.92,150.83,20.0]
[1723383374481,1.65698079,150.91,150.83,20.0]
[1723383374681,0.25098,150.9,150.83,20.0]
[1723383374889,0.12549,150.89,150.83,20.0]
[1723383375192,1.78277218,150.89,150.83,20.0]
[1723383376972,0.12549,150.9,150.83,20.0]
[1723383377175,1.65709561,150.9,150.83,20.0]
[1723383377377,1.65709433,150.89,150.83,20.0]
[1723383378594,0.25098,150.9,150.83,20.0]
[1723383378774,0.25098,150.89,150.83,20.0]
[1723383378982,0.12549,150.9,150.83,20.0]
[1723383379167,45.0,150.91,150.83,20.0]
[1723383379598,46.6570942,150.91,150.83,20.0]
[1723383379975,1.6570942,150.91,150.83,20.0]
[1723383380191,45.37647,150.92,150.83,20.0]
[1723383380376,1.78258288,150.91,150.83,20.0]
[1723383382196,0.12549,150.91,150.83,20.0]
[1723383382510,45.0,150.93,150.83,20.0]
[1723383382797,45.8160335,150.94,150.83,20.0]
[1723383383798,0.50196,150.93,150.83,20.0]
[1723383384075,0.8160335,150.94,150.85,32.5028]
[1723383384277,0.8160335,150.94,150.86,20.0]
[1723383384691,0.8160335,150.94,150.87,12.1017]
[1723383385583,0.12549,150.93,150.87,12.1017]
[1723383386902,0.8160335,150.94,150.89,31.1514]
[1723383388186,0.8160335,150.94,150.91,12.8493]
[1723383389312,0.8160335,150.94,150.92,20.0]
[1723383389809,10.38308151,151.02,150.93,32.47607575]
[1723383390682,4.6346,151.04,150.94,20.0]
[1723383390893,4.6346,151.04,150.95,1.32465255]
[1723383391076,4.6346,151.04,150.96,1.32465255]
[1723383391281,10.37626333,151.05,150.96,1.32465255]
[1723383391282,4.6348,151.03,150.96,1.32465255]
[1723383391476,1.65588159,151.02,150.94,20.0]
[1723383392018,0.25098,151.01,150.93,31.1514]
[1723383392196,4.6363,150.99,150.93,31.1514]
[1723383392384,1.65621206,150.98,150.93,31.1514]
[1723383392711,4.6363,150.99,150.93,31.1514]
[1723383392895,45.25098,150.98,150.93,31.1514]
[1723383393079,45.0,150.99,150.93,31.1514]
[1723383395890,17.29617301,151.06,150.94,1.32462428]
[1723383396217,6.91309101,151.06,150.95,12.8493]
[1723383396406,6.91309101,151.06,150.96,1.32452702]
[1723383396606,43.41805709,151.08,150.96,1.32452702]
[1723383396909,4.6339,151.06,150.96,21.32452702]
[1723383397287,4.6342,151.05,150.96,21.32452702]
[1723383397491,4.6342,151.05,150.96,20.0]
[1723383398519,29.53417398,151.08,150.97,31.1514]
[1723383398809,0.8160335,151.09,150.98,20.0]
[1723383399002,0.8160335,151.09,150.99,14.17344176]
[1723383399207,0.8160335,151.09,151.0,20.0]
[1723383399708,4.6335,151.08,151.0,20.0]
[1723383400108,0.8160335,151.09,151.0,20.0]
[1723383401507,5.4490335,151.09,151.0,20.0]
[1723383401704,5.4490335,151.09,151.01,1.32413371]
[1723383401705,0.8160335,151.09,151.01,1.32413371]
[1723383402899,0.8160335,151.09,151.0,20.0]
[1723383403212,0.8160335,151.09,151.01,31.1514]
[1723383403614,0.8160335,151.09,151.02,20.0]
[1723383404791,5.4491335,151.09,151.02,20.0]
[1723383404992,49.6333,151.08,151.02,20.0]
[1723383405190,4.6333,151.08,151.01,31.1514]
[1723383405587,0.8160335,151.09,151.01,31.1514]
[1723383405815,0.12549,151.07,151.01,31.1514]
[1723383406003,4.6341,151.06,151.01,54.7514]
[1723383406196,0.12549,151.05,151.01,54.7514]
[1723383406393,0.12549,150.96,150.88,12.0788]
[1723383406792,0.12549,150.92,150.88,12.0788]
[1723383406995,47.03341625,150.92,150.88,12.0788]
[1723383407513,2.03341625,150.92,150.88,12.0788]
[1723383408007,0.37647,150.92,150.88,12.0788]
[1723383408316,0.37647,150.92,150.77,6.91372504]
[1723383408317,4.6389,150.9,150.84,12.0788]
[1723383408510,46.90823315,150.89,150.84,12.0788]
[1723383408895,46.90823315,150.89,150.85,23.6]
[1723383408896,0.12549,150.89,150.85,23.6]
[1723383409104,45.0,150.9,150.85,23.6]
[1723383409902,45.0,150.9,150.85,29.55]
[1723383410097,0.12549,150.91,150.85,29.55]
[1723383410397,0.25098,150.91,150.85,29.55]
[1723383411324,45.12549,150.92,150.87,29.55]
[1723383411617,1.65691537,150.92,150.87,29.55]
[1723383411916,1.65691537,150.92,150.84,12.0788]
[1723383411917,5.14056,150.91,150.85,29.55]
[1723383412107,45.0,150.9,150.85,29.55]
[1723383412413,0.25098,150.89,150.85,29.55]
[1723383412808,45.0,150.9,150.85,29.55]
[1723383413121,4.6376,150.94,150.85,29.55]
[1723383413325,45.50196,150.93,150.85,29.55]
[1723383413912,45.50196,150.93,150.87,29.55]
[1723383414701,1.65694526,150.92,150.85,29.55]
[1723383414917,0.25098,150.91,150.85,29.55]
[1723383415099,45.25098,150.91,150.85,29.55]
[1723383415306,0.25098,150.91,150.85,29.55]
[1723383415519,0.25098,150.92,150.85,29.55]
[1723383415721,0.12549,150.91,150.85,29.55]
[1723383415904,51.54658353,150.91,150.85,29.55]
[1723383416218,0.25098,150.9,150.85,29.55]
[1723383416428,0.12549,150.89,150.78,28.7495]
[1723383416727,49.96871436,150.89,150.77,29.55]
[1723383416900,0.12549,150.83,150.77,29.55]
[1723383417096,45.37647,150.83,150.77,29.55]
[1723383417330,45.0,150.83,150.77,29.55]
[1723383417507,45.0,150.83,150.76,12.0788]
[1723383417508,45.12549,150.84,150.79,29.55]
[1723383419111,4.76539,150.87,150.81,29.55]
[1723383419313,45.37647,150.86,150.81,29.55]
[1723383419723,0.25098,150.86,150.81,29.55]
[1723383420007,0.12549,150.86,150.81,29.55]
[1723383420219,0.12549,150.89,150.83,29.55]
[1723383420591,11.8277,150.93,150.85,29.55]
[1723383420592,4.6379,150.93,150.85,29.55]
[1723383420825,29.6637,150.95,150.85,29.55]
[1723383421032,4.6391,150.89,150.83,29.55]
[1723383421210,4.6389,150.9,150.83,29.55]
[1723383422117,45.50196,150.89,150.83,29.55]
[1723383423048,0.12549,150.89,150.85,29.55]
[1723383423514,29.6637,150.95,150.87,29.55]
[1723383423714,11.8277,150.97,150.89,29.55]
[1723383423908,4.6376,150.95,150.89,29.55]
[1723383424107,4.6376,150.94,150.89,29.55]
[1723383425626,0.12549,150.93,150.87,29.55]
[1723383425832,0.37647,150.93,150.87,29.55]
[1723383426039,50.01437,150.93,150.87,29.55]
[1723383426416,45.37647,150.93,150.89,29.55]
[1723383426615,45.25098,150.93,150.89,29.55]
[1723383426836,0.25098,150.93,150.89,29.55]
[1723383427136,4.76389,150.92,150.87,29.55]
[1723383427342,46.78252982,150.91,150.87,29.55]
[1723383427638,46.90801982,150.91,150.87,29.55]
[1723383427818,45.0,150.9,150.87,29.55]
[1723383428137,0.25098,150.91,150.87,29.55]
[1723383428337,45.0,150.92,150.87,29.55]
[1723383428542,0.12549,150.94,150.87,29.55]
[1723383428837,0.25098,150.93,150.87,29.55]
[1723383429137,0.12549,150.92,150.87,29.55]
[1723383429339,1.78237016,150.92,150.87,29.55]
[1723383431233,0.12549,150.92,150.87,29.55]
[1723383431437,0.12549,150.91,150.87,29.55]
[1723383431739,45.25098,150.91,150.87,29.55]
[1723383431922,0.25098,150.9,150.87,29.55]
[1723383433138,45.0,150.91,150.89,29.55]
[1723383433346,4.6372,150.96,150.89,29.55]
[1723383433646,45.0,150.95,150.89,29.55]
[1723383433941,49.6373,150.95,150.91,23.63]
[1723383434517,0.50196,150.94,150.91,23.63]
[1723383435122,0.12549,150.94,150.91,23.63]
[1723383436155,4.76309,150.94,150.91,23.63]
[1723383436324,45.0,150.93,150.91,23.63]
[1723383436519,6.92433759,150.98,150.91,23.63]
[1723383436727,4.6365,150.98,150.93,23.63]
[1723383436934,24.6365,150.98,150.93,23.63]
[1723383437142,4.6367,150.97,150.93,23.63]
[1723383437823,0.12549,150.96,150.93,23.63]
[1723383438156,0.25098,150.96,150.93,23.63]
[1723383438444,0.12549,150.95,150.93,23.63]
[1723383438641,0.25098,150.95,150.93,23.63]
[1723383440740,0.12549,150.95,150.93,23.63]
[1723383440930,29.6637,150.99,150.93,23.63]
[1723383441243,4.6358,151.0,150.97,23.63]
[1723383442555,45.0,150.99,150.97,23.63]
[1723383442735,0.37647,150.98,150.97,23.63]
[1723383442931,0.50196,150.98,150.95,23.63]
[1723383443150,0.12549,150.95,150.91,23.63]
[1723383443634,45.50196,150.95,150.91,23.63]
[1723383444143,0.50196,150.95,150.91,23.63]
[1723383444840,0.50196,150.95,150.89,23.63]
[1723383445152,0.12549,150.93,150.89,23.63]
[1723383445355,0.50196,150.93,150.89,23.63]
[1723383445565,0.25098,150.93,150.91,23.63]
[1723383445932,0.12549,150.92,150.87,29.53]
[1723383446258,0.25098,150.92,150.87,29.53]
[1723383446438,45.0,150.94,150.89,29.53]
[1723383446637,0.12549,150.93,150.89,29.53]
[1723383446854,0.25098,150.94,150.91,29.53]
[1723383448536,0.12549,150.93,150.91,29.53]
[1723383448854,0.25098,150.93,150.89,29.53]
[1723383449059,0.25098,150.94,150.89,29.53]
[1723383449448,1.90777125,150.93,150.89,29.53]
[1723383449638,0.12549,150.92,150.87,29.53]
[1723383449841,0.25098,150.94,150.91,29.53]
[1723383450262,0.12549,150.94,150.91,29.53]
[1723383451339,4.6362,150.99,150.93,29.53]
[1723383451554,24.6362,150.99,150.93,29.53]
[1723383451748,31.7114,151.0,150.93,29.53]
[1723383451940,27.0755,151.0,150.95,29.53]
[1723383452441,27.0755,151.0,150.93,29.53]
[1723383452442,28.73164061,151.0,150.93,29.53]
[1723383453344,0.12549,150.99,150.93,29.53]
[1723383453555,47.1582941,150.99,150.93,29.53]
[1723383454251,4.6353,151.02,150.95,29.53]
[1723383455738,45.50196,151.01,150.95,29.53]
[1723383457067,2.15815738,151.01,150.95,29.53]
[1723383457362,0.12549,150.99,150.95,29.53]
[1723383457567,0.12549,150.98,150.93,29.53]
[1723383457953,47.15832674,150.98,150.93,29.53]
[1723383458833,45.0,150.97,150.93,29.53]
[1723383459037,0.50196,150.98,150.93,29.53]
[1723383459657,2.15823328,150.98,150.93,29.53]
[1723383460463,0.50196,150.98,150.93,29.53]
[1723383460657,0.37647,150.98,150.95,29.53]
[1723383461143,45.0,150.99,150.97,29.53]
[1723383461346,6.91644332,151.03,150.97,29.53]
[1723383461561,31.71,151.04,150.99,29.53]
[1723383461864,4.6348,151.03,150.97,29.53]
[1723383462048,4.6353,151.02,150.97,29.53]
[1723383462364,4.635,151.03,150.97,29.53]
[1723383462669,0.12549,151.01,150.97,29.53]
[1723383463364,0.25098,151.01,150.97,29.53]
[1723383463539,0.12549,151.0,150.97,29.53]
[1723383463843,0.25098,151.0,150.97,29.53]
[1723383464038,0.25098,151.0,150.95,29.53]
[1723383464242,0.12549,150.99,150.95,29.53]
[1723383464474,0.25098,150.99,150.95,29.53]
[1723383465762,6.2910247,151.03,150.95,29.53]
[1723383465941,31.7102,151.04,150.97,29.53]
[1723383466141,33.36608707,151.04,150.97,29.53]
[1723383466765,4.635,151.03,150.97,29.53]
[1723383466963,0.12549,151.01,150.97,29.53]
[1723383467268,45.50196,151.01,150.97,29.53]
[1723383467852,45.50196,151.01,150.96,23.61]
[1723383468170,0.50196,151.01,150.96,23.61]
[1723383468470,0.50196,151.01,150.98,23.61]
[1723383469074,0.12549,151.01,150.98,23.61]
[1723383469277,380.6,151.06,151.0,23.61]
[1723383469494,380.6,151.06,151.01,23.61]
[1723383469781,4.6345,151.04,150.99,23.61]
[1723383469984,4.6342,151.05,150.99,23.61]
[1723383470167,1.65576111,151.04,150.92,39.2155]
[1723383470357,1.65576111,151.04,150.96,23.61]
[1723383470564,0.12549,151.04,150.98,23.61]
[1723383470860,1.65576385,151.05,151.0,23.61]
[1723383471080,380.6,151.06,151.0,23.61]
[1723383471381,380.6,151.06,151.02,23.61]
[1723383471961,1.65543105,151.05,151.0,23.61]
[1723383472184,380.6,151.06,150.98,23.61]
[1723383472185,1.65558969,151.04,150.98,23.61]
[1723383472885,0.12549,151.02,150.98,23.61]
[1723383473108,1.65565115,151.02,150.98,23.61]
[1723383473273,1.78114115,151.02,150.98,23.61]
[1723383474179,0.12549,151.02,150.98,23.61]
[1723383474384,0.37647,151.03,150.98,23.61]
[1723383474681,0.12549,151.02,150.98,23.61]
[1723383475679,384.02395021,151.06,151.0,23.61]
[1723383475867,380.6,151.06,151.02,15.93472379]
[1723383477087,45.37647,151.05,151.02,15.93472379]
[1723383477601,380.6,151.06,151.02,15.93472379]
[1723383478284,380.6,151.06,150.96,23.61]
[1723383478285,21.6785,151.08,151.04,23.61]
[1723383478977,1.65504484,151.07,151.04,23.61]
[1723383479872,0.25098,151.06,151.04,23.61]
[1723383480283,21.6785,151.08,151.04,23.61]
[1723383480484,0.25098,151.07,151.04,23.61]
[1723383480696,46.9062317,151.07,151.04,23.61]
[1723383481793,45.25098,151.07,151.04,23.61]
[1723383482692,1.0670135,151.09,151.04,23.61]
[1723383482891,0.8160335,151.09,151.04,23.61]
[1723383483087,1.65497528,151.08,151.04,23.61]
[1723383484205,0.8160335,151.09,151.04,23.61]
[1723383484507,0.12549,151.08,151.04,23.61]
[1723383484709,45.8160335,151.09,151.04,23.61]
[1723383485001,45.8160335,151.09,151.06,23.61]
[1723383485184,0.8160335,151.09,151.06,23.61]
[1723383486188,0.8160335,151.09,151.08,23.61]
[1723383486599,0.8160335,151.09,151.06,23.61]
[1723383486786,1.90601389,151.08,151.04,23.61]
[1723383486993,0.25098,151.08,151.04,23.61]
[1723383487180,1.90610645,151.08,151.04,23.61]
[1723383487379,6.53940645,151.08,151.02,23.61]
[1723383487584,45.0,151.07,151.02,23.61]
[1723383487799,1.90610645,151.08,151.02,23.61]
[1723383487800,1.6552131,151.06,151.02,23.61]
[1723383488194,45.25098,151.08,151.02,23.61]
[1723383488391,45.0,151.08,151.04,23.61]
[1723383488579,0.8160335,151.09,151.04,23.61]
[1723383488899,0.25098,151.08,151.04,23.61]
[1723383489204,1.90615026,151.08,151.04,23.61]
[1723383489388,0.25098,151.08,151.04,23.61]
[1723383490279,0.8160335,151.09,151.04,23.61]
[1723383490503,0.8160335,151.09,151.06,23.61]
[1723383492311,0.8160335,151.09,151.04,23.61]
[1723383492515,0.12549,151.08,151.04,23.61]
[1723383492979,0.12549,151.07,151.02,23.61]
[1723383493181,0.25098,151.07,151.03,20.0]
[1723383493602,45.12549,151.08,151.04,23.61]
[1723383494606,45.12549,151.08,151.03,20.0]
[1723383494788,1.65508373,151.07,151.03,23.61]
[1723383494996,0.12549,151.06,151.03,23.61]
[1723383496501,45.0,151.07,151.03,23.61]
[1723383496693,0.8160335,151.09,151.03,23.61]
[1723383496892,0.25098,151.08,151.03,23.61]
[1723383497092,0.12549,151.08,151.03,23.61]
[1723383497803,0.37647,151.08,151.03,23.61]
[1723383498003,2.03166045,151.08,151.03,23.61]
[1723383498200,0.12549,151.07,151.03,23.61]
[1723383498416,1.78075288,151.07,151.03,23.61]
[1723383500191,0.12549,151.06,151.03,23.61]
[1723383501318,0.25098,151.07,151.03,23.61]
[1723383501492,0.8160335,151.09,151.05,23.61]
[1723383502115,0.12549,151.08,151.05,23.61]
[1723383502613,0.12549,151.08,151.01,43.61]
[1723383502819,0.12549,151.06,151.01,43.61]
[1723383503127,2.15737449,151.06,151.01,43.61]
[1723383503509,2.15737449,151.06,151.01,23.61]
[1723383503510,47.15737449,151.06,151.01,23.61]
[1723383503693,0.12549,151.04,150.99,23.61]
[1723383503895,47.15760749,151.04,150.99,23.61]
[1723383504329,45.0,151.05,151.01,23.61]
[1723383504490,0.25098,151.04,151.01,23.61]
[1723383504690,0.12549,151.03,151.01,23.61]
[1723383504904,0.25098,151.03,150.97,21.9349]
[1723383505091,0.25098,151.03,150.98,23.61]
[1723383505092,0.25098,151.02,150.98,23.61]
[1723383505302,1.90681,151.02,150.98,23.61]
[1723383506016,0.12549,151.01,150.98,23.61]
[1723383506611,0.12549,151.02,150.98,23.61]
[1723383507321,0.12549,151.02,151.0,23.61]
[1723383507540,20.8313,151.06,151.0,23.61]
[1723383507694,1.65559321,151.05,151.0,23.61]
[1723383508301,6.28979321,151.05,150.96,6.3694]
[1723383508501,6.28979321,151.05,150.99,23.61]
[1723383508805,0.12549,151.03,150.99,23.61]
[1723383509403,45.12549,151.04,150.99,23.61]
[1723383509606,0.12549,151.04,150.99,23.61]
[1723383510401,0.12549,151.04,151.01,23.61]
[1723383512201,0.37647,151.04,151.01,23.61]
[1723383513825,0.12549,151.03,151.01,23.61]
[1723383514129,0.12549,151.03,150.99,23.61]
[1723383514303,0.25098,151.03,150.99,23.61]
[1723383514505,0.12549,151.02,150.99,23.61]
[1723383514705,0.25098,151.02,150.99,23.61]
[1723383514906,4.76099,151.01,150.96,6.3694]
[1723383515124,45.12549,151.0,150.96,23.61]
[1723383515722,0.12549,151.02,150.98,23.61]
[1723383515926,0.25098,151.02,150.98,23.61]
[1723383516117,0.12549,151.01,150.98,23.61]
[1723383516314,0.37647,151.01,150.98,23.61]
[1723383516829,0.12549,151.0,150.98,23.61]
[1723383518832,0.12549,151.0,150.96,23.61]
[1723383519127,4.88678,151.0,150.94,23.61]
[1723383519304,45.25098,150.99,150.94,23.61]
[1723383519823,45.12549,150.99,150.96,23.61]
[1723383520023,0.12549,150.99,150.96,23.61]
[1723383520431,0.25098,150.99,150.96,23.61]
[1723383520917,0.25098,150.99,150.93,16.2345]
[1723383520918,9.80495021,151.04,150.98,23.61]
[1723383521119,3.42395021,151.05,151.0,23.61]
[1723383521439,20.8313,151.06,151.02,23.61]
[1723383522918,20.8313,151.06,151.0,23.61]
[1723383523120,4.6348,151.03,150.98,23.61]
[1723383523325,46.78130235,151.02,150.98,23.61]
[1723383523525,1.65584446,151.01,150.98,23.61]
[1723383524719,0.12549,151.0,150.98,23.61]
[1723383525032,0.25098,151.01,150.98,23.61]
[1723383525219,45.12549,151.02,150.98,23.61]
[1723383526138,45.12549,151.02,150.93,16.2345]
[1723383526139,20.8313,151.06,151.0,23.61]
[1723383526339,20.8313,151.06,151.03,23.61]
[1723383526523,20.8313,151.06,151.03,15.93582502]
[1723383527620,25.4652,151.06,151.03,15.93582502]
[1723383528009,20.8313,151.06,151.03,15.93582502]
[1723383528418,0.12549,151.05,151.03,15.93582502]
[1723383528721,45.25098,151.05,151.03,15.93582502]
[1723383529538,45.12549,151.05,151.03,15.93582502]
[1723383529744,20.8313,151.06,151.03,15.93582502]
[1723383530122,45.37647,151.05,151.03,15.93582502]
[1723383530650,45.37647,151.05,150.98,6.051]
[1723383530651,45.25098,151.05,151.01,23.61]
[1723383532344,0.25098,151.05,151.01,23.61]
[1723383532532,45.0,151.06,151.01,23.61]
[1723383532739,45.12549,151.07,151.03,23.61]
[1723383532918,0.8160335,151.09,151.03,23.61]
[1723383534023,5.4492335,151.09,151.03,23.61]
[1723383534332,0.12549,151.05,151.01,23.61]
[1723383534544,45.50196,151.05,151.01,23.61]
[1723383535041,4.6347,151.04,151.01,23.61]
[1723383535220,45.12549,151.03,150.99,23.61]
[1723383535425,45.0,151.03,150.99,23.61]
[1723383535950,45.0,151.03,151.01,23.61]
[1723383536155,0.50196,151.05,151.01,23.61]
[1723383537626,0.37647,151.05,151.01,23.61]
[1723383538040,3.42395021,151.08,150.98,6.051]
[1723383538041,3.42395021,151.08,151.03,23.61]
[1723383538239,0.8160335,151.09,151.05,23.61]
[1723383538425,0.8160335,151.09,151.04,20.0]
[1723383539631,45.8160335,151.09,151.04,20.0]
[1723383540346,45.8160335,151.09,151.03,23.61]
[1723383540547,0.12549,151.07,151.03,23.61]
[1723383540850,0.25098,151.07,151.03,23.61]
[1723383541029,0.37647,151.06,151.03,23.61]
[1723383541230,0.12549,151.07,151.03,23.61]
[1723383541427,0.8160335,151.09,151.05,23.61]
[1723383541933,0.8160335,151.09,150.94,21.5525]
[1723383541934,15.8204,151.06,150.94,21.5525]
[1723383542129,42.85435021,151.06,150.89,21.5525]
[1723383542328,4.6364,150.98,150.89,21.5525]
[1723383542530,1.6564228,150.97,150.91,23.61]
[1723383542739,0.37647,150.96,150.91,23.61]
[1723383543849,0.37647,150.96,150.89,29.661]
[1723383543850,0.25098,150.95,150.89,29.661]
[1723383544159,0.25098,150.94,150.86,6.051]
[1723383544363,45.25098,150.94,150.89,23.61]
[1723383544547,1.656608,150.93,150.89,23.61]
[1723383545131,45.25098,150.94,150.89,23.61]
[1723383546229,1.90769663,150.93,150.88,23.61]
[1723383546435,0.25098,150.92,150.88,23.61]
[1723383549534,1.90782748,150.92,150.88,23.61]
[1723383550134,0.25098,150.92,150.9,23.61]
[1723383550573,0.12549,150.93,150.9,23.61]
[1723383550856,0.25098,150.93,150.9,23.61]
[1723383552256,0.25098,150.92,150.9,23.61]
[1723383552462,0.25098,150.91,150.88,23.61]
[1723383553838,0.12549,150.9,150.88,23.61]
[1723383554054,0.25098,150.9,150.88,23.61]
[1723383554257,0.12549,150.89,150.88,23.61]
[1723383554447,0.25098,150.89,150.88,23.61]
[1723383557551,0.12549,150.89,150.88,23.61]
[1723383557754,16.6024,150.92,150.88,23.61]
[1723383558064,45.25098,150.91,150.9,23.61]
[1723383558366,45.0,150.91,150.9,23.61]
[1723383558662,23.5199148,150.97,150.9,23.61]
[1723383558872,23.5199148,150.97,150.93,23.61]
[1723383559077,21.2391,150.97,150.93,23.61]
[1723383559240,21.2391,150.97,150.91,23.61]
[1723383559876,20.7391,150.97,150.91,23.61]
[1723383560168,45.12549,150.96,150.91,23.61]
[1723383560368,45.12549,150.96,150.93,23.61]
[1723383561768,0.25098,150.95,150.93,23.61]
[1723383561960,0.12549,150.94,150.93,23.61]
[1723383563174,16.1024,150.97,150.93,23.61]
[1723383563662,1.65640339,150.96,150.93,23.61]
[1723383564361,0.12549,150.95,150.93,23.61]
[1723383565556,1.78189293,150.95,150.93,23.61]
[1723383565755,0.12549,150.95,150.93,23.61]
[1723383566056,0.25098,150.95,150.93,23.61]
[1723383566256,0.25098,150.94,150.93,23.61]
[1723383566649,0.37647,150.94,150.93,23.61]
[1723383566854,0.50196,150.94,150.91,23.61]
[1723383567064,0.12549,150.93,150.91,23.61]
[1723383568355,0.12549,150.94,150.91,23.61]
[1723383568559,0.25098,150.95,150.93,23.61]
[1723383568770,0.12549,150.94,150.93,23.61]
[1723383570463,0.12549,150.95,150.93,23.61]
[1723383570701,45.12549,150.96,150.93,23.61]
[1723383570865,0.12549,150.95,150.93,23.61]
[1723383575875,0.12549,150.95,150.94,11.81]
[1723383578571,186.99752886,151.01,150.94,11.81]
[1723383578763,15.4207,151.01,150.98,11.81]
[1723383578955,15.4207,151.01,150.96,11.81]
[1723383579270,22.33299715,151.01,150.95,11.81]
[1723383579462,4.6361,150.99,150.95,11.81]
[1723383579969,0.12549,150.97,150.95,11.81]
[1723383580158,45.37647,150.97,150.95,11.81]
[1723383580555,0.12549,150.96,150.95,11.81]
[1723383580944,0.25098,150.96,150.95,11.81]
[1723383584874,22.33299715,151.01,150.95,11.81]
[1723383585171,1.65608359,151.0,150.98,11.81]
[1723383585576,1.65608359,151.0,150.96,11.81]
[1723383585754,15.4207,151.01,150.96,11.81]
[1723383586076,1.65607962,151.0,150.96,11.81]
[1723383586981,6.29187962,151.0,150.89,6.303]
[1723383587281,0.12549,150.98,150.96,11.81]
[1723383587481,0.37647,150.98,150.96,11.81]
[1723383587669,0.12549,150.97,150.96,11.81]
[1723383587981,0.37647,150.97,150.96,11.81]
[1723383588155,0.50196,150.97,150.96,11.81]
[1723383590988,0.50196,150.97,150.94,11.81]
[1723383591178,0.25098,150.96,150.94,11.81]
[1723383591375,0.37647,150.95,150.9,20.0]
[1723383591561,0.12549,150.94,150.9,20.0]
[1723383591961,0.12549,150.95,150.9,20.0]
[1723383592382,0.12549,150.95,150.94,11.81]
[1723383592578,0.25098,150.95,150.94,11.81]
[1723383592789,0.37647,150.95,150.94,11.81]
[1723383594292,0.50196,150.95,150.94,11.81]
[1723383598992,21.7126203,151.01,150.9,20.0]
[1723383599197,15.4207,151.01,150.9,20.0]
[1723383599369,15.4207,151.01,150.98,11.81]
[1723383601172,20.0561,151.01,150.98,11.81]
[1723383601382,0.25098,151.0,150.98,11.81]
[1723383601580,0.37647,150.99,150.96,11.81]
[1723383601788,0.25098,150.98,150.9,20.0]
[1723383601979,0.37647,150.97,150.96,11.81]
[1723383602296,0.50196,150.97,150.96,11.81]
[1723383603579,4.76249,150.96,150.91,11.81]
[1723383603776,0.12549,150.94,150.91,11.81]
[1723383603980,0.12549,150.94,150.93,11.81]